bitfinex/quotes_ETHUSD_20240610
["timestamp","ask_amount","ask_price","bid_price","bid_amount"]
[1717996152779,0.28045109,3688.5,3687.9,0.28304058]
[1717996153065,0.28045109,3688.5,3688.0,2.392]
[1717996153463,0.28045109,3688.5,3688.0,4.39034005]
[1717996153663,1.07645109,3688.5,3688.0,4.39034005]
[1717996154862,0.28045109,3688.5,3688.0,4.39034005]
[1717996156481,0.796,3688.4,3688.0,2.392]
[1717996156880,0.796,3688.4,3688.1,35.0]
[1717996157900,0.75930454,3688.4,3688.1,35.0]
[1717996162497,0.28045109,3688.5,3688.1,35.0]
[1717996162873,1.35542,3688.9,3688.2,2.2584]
[1717996163096,0.05103948,3688.4,3688.3,2.65030545]
[1717996163310,0.796,3688.8,3688.3,2.65030545]
[1717996164204,1.35542,3688.9,3688.3,2.65030545]
[1717996164411,0.796,3688.8,3688.3,2.65030545]
[1717996168488,0.796,3688.6,3688.3,2.65030545]
[1717996168710,0.796,3688.6,3688.4,2.65030545]
[1717996170408,0.796,3688.6,3688.2,2.2584]
[1717996170610,0.05102277,3688.5,3688.2,2.2584]
[1717996170979,0.796,3688.6,3688.2,2.2584]
[1717996173723,0.42444023,3689.0,3688.3,1.35563]
[1717996173888,0.42444023,3689.0,3688.5,1.35556]
[1717996174087,0.05116046,3688.9,3688.6,2.4301]
[1717996174676,2.15131,3689.2,3688.6,2.4301]
[1717996177303,0.05132932,3689.1,3688.7,35.0]
[1717996177509,0.05132932,3689.1,3688.7,37.65030545]
[1717996177819,2.15131,3689.2,3688.7,37.65030545]
[1717996178194,1.3552,3689.5,3688.7,37.65030545]
[1717996178520,1.3552,3689.5,3688.8,2.4398]
[1717996178705,0.796,3689.4,3688.9,2.65030545]
[1717996178882,0.84750927,3689.4,3688.8,2.4398]
[1717996179217,0.05150927,3689.4,3688.9,35.0]
[1717996179516,2.1512,3689.5,3688.9,35.0]
[1717996179747,1.3552,3689.5,3688.9,35.0]
[1717996180030,0.28071174,3689.6,3689.0,2.4398]
[1717996180340,0.796,3689.7,3689.2,2.4086]
[1717996180652,0.796,3689.7,3689.3,35.0]
[1717996180653,0.05176025,3689.6,3689.3,35.0]
[1717996180788,1.35509,3689.8,3689.3,37.65030545]
[1717996181165,0.796,3689.7,3689.3,37.65030545]
[1717996181793,0.28035349,3689.9,3689.3,37.65030545]
[1717996181994,0.796,3689.8,3689.3,37.65030545]
[1717996183903,0.28035349,3689.9,3689.3,37.65030545]
[1717996184092,1.07635349,3689.9,3689.4,2.4086]
[1717996184430,1.07635349,3689.9,3689.4,5.05890545]
[1717996184626,0.28035349,3689.9,3689.4,5.05890545]
[1717996184827,1.07635349,3689.9,3689.4,5.05890545]
[1717996187327,0.05166374,3689.8,3689.4,2.4086]
[1717996187994,0.796,3689.9,3689.4,2.4086]
[1717996191024,0.05166374,3689.8,3689.7,3.79882]
[1717996191210,0.796,3690.6,3689.7,3.79882]
[1717996191407,0.796,3690.6,3689.9,1.35504]
[1717996191891,0.05228153,3690.5,3689.9,1.35504]
[1717996192340,0.05228153,3690.5,3690.0,35.0]
[1717996192711,0.796,3690.6,3690.0,35.0]
[1717996197409,0.796,3690.4,3689.9,1.35504]
[1717996197629,0.05212161,3690.3,3690.0,0.4258222]
[1717996198402,0.796,3690.4,3690.0,0.4258222]
[1717996201243,0.05212768,3690.3,3690.0,0.4258222]
[1717996201444,0.05212768,3690.3,3690.0,35.4258222]
[1717996201815,0.796,3690.4,3690.0,35.4258222]
[1717996202024,0.796,3690.4,3690.1,2.65030545]
[1717996202425,0.05163828,3690.3,3690.0,0.4258222]
[1717996203019,0.796,3690.4,3690.0,0.4258222]
[1717996204054,0.796,3690.2,3690.0,0.4258222]
[1717996204406,0.05170681,3690.1,3690.0,0.4258222]
[1717996204813,0.796,3690.2,3690.0,0.4258222]
[1717996205515,0.796,3690.2,3689.6,1.35516]
[1717996206767,0.796,3690.2,3689.7,35.0]
[1717996206964,0.796,3690.2,3689.5,3.0]
[1717996207349,0.05180903,3690.1,3689.5,3.0]
[1717996208153,0.05180903,3690.1,3689.3,1.35526]
[1717996208355,0.05180903,3690.1,3689.4,0.748556]
[1717996208555,0.796,3690.2,3689.4,0.748556]
[1717996208790,0.05177463,3690.0,3689.4,0.748556]
[1717996208951,0.05180903,3690.1,3689.5,1.35518]
[1717996209151,0.05174023,3689.9,3689.5,1.35518]
[1717996209415,0.05177463,3690.0,3689.6,2.7995736]
[1717996209593,0.05170582,3689.8,3689.6,2.7995736]
[1717996209886,0.05167142,3689.7,3689.6,2.7995736]
[1717996210049,0.796,3690.2,3689.6,2.7995736]
[1717996210250,0.796,3690.2,3689.7,0.41547536]
[1717996210789,2.3399,3690.4,3689.7,0.41547536]
[1717996211094,0.796,3690.3,3689.7,1.77056536]
[1717996211297,0.796,3690.5,3689.8,2.452]
[1717996211594,0.796,3690.5,3689.9,0.5528939]
[1717996215571,3.1207,3690.5,3689.9,0.5528939]
[1717996215910,0.05188349,3690.4,3689.9,0.5528939]
[1717996217773,0.796,3690.3,3689.9,0.5528939]
[1717996218273,0.05181151,3690.2,3689.9,0.5528939]
[1717996218474,0.796,3690.3,3689.9,0.5528939]
[1717996218677,0.05177711,3690.1,3689.9,0.5528939]
[1717996218890,0.796,3690.3,3690.0,0.19079839]
[1717996219085,0.05174271,3690.0,3689.9,0.5528939]
[1717996219291,0.796,3690.3,3689.9,0.5528939]
[1717996220716,0.05174271,3690.0,3689.9,0.5528939]
[1717996220910,0.796,3690.3,3689.9,0.5528939]
[1717996221120,0.05183531,3690.0,3689.9,0.5528939]
[1717996221318,3.1207,3690.5,3689.7,1.35509]
[1717996221494,0.05183531,3690.0,3689.7,1.35509]
[1717996221686,3.1207,3690.5,3689.7,1.35509]
[1717996222029,0.05183923,3689.9,3689.7,1.35509]
[1717996222187,3.1207,3690.5,3689.7,1.35509]
[1717996222686,0.05201122,3690.4,3689.7,1.35509]
[1717996222887,0.05201122,3690.4,3689.9,1.35504]
[1717996231705,0.09204292,3690.4,3689.9,1.35504]
[1717996243242,0.09204292,3690.4,3690.0,35.0]
[1717996243432,0.796,3690.5,3690.0,35.0]
[1717996262101,1.35487,3690.4,3690.0,35.0]
[1717996265010,3.75647,3690.4,3690.0,35.0]
[1717996265211,3.75647,3690.4,3689.8,0.28293491]
[1717996265514,0.09206208,3690.3,3689.8,0.28293491]
[1717996265694,0.09206208,3690.3,3689.9,35.0]
[1717996265897,0.88806208,3690.3,3689.9,35.0]
[1717996266204,0.796,3690.3,3689.9,35.0]
[1717996269012,1.35494,3690.2,3689.8,0.28293491]
[1717996269206,3.06218775,3690.8,3689.8,0.28293491]
[1717996269207,2.15103,3690.0,3689.8,0.28293491]
[1717996269414,4.51383,3690.0,3689.8,0.28293491]
[1717996269581,0.09192243,3689.9,3689.8,0.28293491]
[1717996269993,4.51383,3690.0,3689.8,0.28293491]
[1717996270207,3.71783,3690.0,3689.8,0.28293491]
[1717996270385,0.88780745,3689.9,3689.8,0.28293491]
[1717996270720,0.796,3689.9,3689.8,0.28293491]
[1717996274091,0.88780745,3689.9,3689.8,35.28293491]
[1717996274598,0.796,3689.9,3689.8,35.28293491]
[1717996277322,0.796,3689.9,3689.8,0.28293491]
[1717996277690,0.88780745,3689.9,3689.8,0.28293491]
[1717996277891,0.88780745,3689.9,3689.8,35.28293491]
[1717996278115,0.796,3689.9,3689.8,35.28293491]
[1717996280821,0.796,3689.9,3689.8,0.28293491]
[1717996281207,0.88780745,3689.9,3689.8,0.28293491]
[1717996281529,0.88780745,3689.9,3689.8,35.28293491]
[1717996282008,0.796,3689.9,3689.8,35.28293491]
[1717996292007,0.796,3689.9,3689.8,0.28293491]
[1717996292400,0.88750433,3689.9,3689.8,0.28293491]
[1717996292809,0.796,3689.9,3689.8,0.28293491]
[1717996293511,0.88750433,3689.9,3689.8,0.28293491]
[1717996294451,0.796,3689.9,3689.8,0.28293491]
[1717996295216,0.88750433,3689.9,3689.8,0.28293491]
[1717996296323,0.796,3689.9,3689.8,0.28293491]
[1717996296848,0.88750433,3689.9,3689.8,0.28293491]
[1717996300619,0.88750433,3689.9,3689.3,35.0]
[1717996300828,0.796,3689.5,3689.3,35.0]
[1717996301035,0.796,3689.5,3689.3,35.28295696]
[1717996301355,1.35523,3689.4,3689.3,0.28295696]
[1717996301766,1.43533967,3689.4,3689.3,0.28295696]
[1717996302072,1.43533967,3689.4,3689.3,35.28295696]
[1717996302428,1.35523,3689.4,3689.3,35.28295696]
[1717996304838,1.35523,3689.4,3689.3,0.28295696]
[1717996305341,1.43529115,3689.4,3689.3,35.28295696]
[1717996305827,1.35523,3689.4,3689.3,35.28295696]
[1717996308669,1.35523,3689.4,3689.3,0.28295696]
[1717996308960,1.43530821,3689.4,3689.3,35.28295696]
[1717996309122,1.35523,3689.4,3689.3,35.28295696]
[1717996312126,1.35523,3689.4,3689.3,0.28295696]
[1717996312552,1.43526988,3689.4,3689.3,0.28295696]
[1717996312740,1.43526988,3689.4,3689.3,35.28295696]
[1717996312940,1.35523,3689.4,3689.3,35.28295696]
[1717996315765,1.35523,3689.4,3689.3,0.28295696]
[1717996315972,1.43449749,3689.4,3689.3,0.28295696]
[1717996316176,1.43449749,3689.4,3689.3,35.28295696]
[1717996316334,1.35523,3689.4,3689.3,35.28295696]
[1717996319287,1.35523,3689.4,3689.3,0.28295696]
[1717996319442,2.15123,3689.4,3689.3,0.28295696]
[1717996319637,2.23049749,3689.4,3689.3,35.28295696]
[1717996320068,2.15123,3689.4,3689.3,35.28295696]
[1717996322709,2.15123,3689.4,3689.3,0.28295696]
[1717996323006,2.23044896,3689.4,3689.3,0.28295696]
[1717996323219,2.23044896,3689.4,3689.3,37.72485696]
[1717996323220,0.07921896,3689.4,3689.3,37.72485696]
[1717996323501,2.15113,3689.7,3689.3,37.72485696]
[1717996325767,1.35513,3689.7,3689.3,37.72485696]
[1717996326077,0.796,3689.6,3689.3,37.72485696]
[1717996329307,0.796,3689.6,3689.3,35.28295696]
[1717996329867,0.796,3689.4,3689.3,35.28295696]
[1717996330814,0.796,3689.6,3689.3,35.28295696]
[1717996331821,0.796,3689.4,3689.3,35.28295696]
[1717996332172,0.796,3689.4,3689.3,0.28295696]
[1717996332374,0.87264117,3689.4,3689.3,0.28295696]
[1717996332683,0.87264117,3689.4,3689.3,35.28295696]
[1717996333095,0.796,3689.4,3689.3,35.28295696]
[1717996335895,0.796,3689.4,3689.3,0.28295696]
[1717996336409,0.796,3689.4,3689.3,35.28295696]
[1717996336410,0.87265823,3689.4,3689.3,35.28295696]
[1717996336572,0.796,3689.4,3689.3,35.28295696]
[1717996338789,0.796,3689.4,3689.3,0.28295696]
[1717996338987,1.08764609,3689.4,3689.3,0.28295696]
[1717996339710,0.796,3689.4,3689.3,0.28295696]
[1717996344637,0.87247189,3689.4,3689.3,0.28295696]
[1717996345285,0.796,3689.4,3689.3,0.28295696]
[1717996348992,1.3553,3689.3,3688.8,35.0]
[1717996349195,0.796,3689.1,3688.8,35.0]
[1717996349501,0.796,3689.1,3688.9,0.28295777]
[1717996350013,0.07626508,3689.0,3688.9,0.28295777]
[1717996350190,0.07626508,3689.0,3688.9,35.28295777]
[1717996350387,0.796,3689.1,3688.9,35.28295777]
[1717996353091,0.796,3689.1,3688.9,0.28295777]
[1717996353426,0.07626508,3689.0,3688.9,0.28295777]
[1717996353624,0.07626508,3689.0,3688.9,35.28295777]
[1717996353787,0.796,3689.1,3688.9,35.28295777]
[1717996356795,0.796,3689.1,3688.9,0.28295777]
[1717996357129,0.07626508,3689.0,3688.9,0.28295777]
[1717996357327,0.07626508,3689.0,3688.9,35.28295777]
[1717996357706,0.796,3689.1,3688.9,35.28295777]
[1717996360298,0.796,3689.1,3688.9,0.28295777]
[1717996360710,0.07624591,3689.0,3688.9,0.28295777]
[1717996360900,0.07624591,3689.0,3688.9,35.28295777]
[1717996361420,0.796,3689.1,3688.9,35.28295777]
[1717996361604,0.796,3689.1,3688.9,0.28295777]
[1717996361929,0.07623635,3689.0,3688.9,0.28295777]
[1717996362510,0.796,3689.1,3688.9,0.28295777]
[1717996365428,0.07623635,3689.0,3688.9,0.28295777]
[1717996365839,0.796,3689.1,3688.9,0.28295777]
[1717996369043,0.07623315,3689.0,3688.9,0.28295777]
[1717996369209,0.07623315,3689.0,3688.9,35.28295777]
[1717996369409,0.796,3689.1,3688.9,35.28295777]
[1717996371347,0.796,3689.1,3688.9,0.28295777]
[1717996371734,0.07623315,3689.0,3688.9,0.28295777]
[1717996410800,0.07623315,3689.0,3688.9,35.28295777]
[1717996411103,2.15136,3689.1,3688.9,35.28295777]
[1717996413668,2.15136,3689.1,3688.9,0.28295777]
[1717996413869,0.07549585,3689.0,3688.9,0.28295777]
[1717996414069,0.07549585,3689.0,3688.9,35.28295777]
[1717996414270,2.15136,3689.1,3688.9,35.28295777]
[1717996414497,2.15136,3689.1,3688.9,0.28295777]
[1717996414705,0.07549585,3689.0,3688.9,0.28295777]
[1717996415204,2.15136,3689.1,3688.9,0.28295777]
[1717996417105,0.796,3689.0,3688.9,0.28295777]
[1717996417774,0.86879453,3689.0,3688.9,0.28295777]
[1717996418400,0.796,3689.0,3688.9,0.28295777]
[1717996420723,0.86879453,3689.0,3688.9,0.28295777]
[1717996435443,0.796,3689.0,3688.9,0.28295777]
[1717996435807,0.86876253,3689.0,3688.9,0.28295777]
[1717996462668,1.35542,3688.9,3688.6,35.0]
[1717996462986,0.796,3688.7,3688.6,35.0]
[1717996464684,1.35553,3688.6,3688.3,9.5379]
[1717996464882,1.35553,3688.6,3688.3,10.49169]
[1717996465088,1.35553,3688.6,3688.4,35.28294499]
[1717996471598,1.35553,3688.6,3688.4,35.0]
[1717996479307,0.796,3688.5,3688.4,35.0]
[1717996488726,1.35553,3688.6,3688.4,35.0]
[1717996488934,1.35553,3688.6,3688.5,4.96560545]
[1717996492024,1.35553,3688.6,3688.5,2.3153]
[1717996492346,1.35553,3688.6,3688.5,37.3153]
[1717996494525,1.35553,3688.6,3688.5,35.0]
[1717996495410,1.35553,3688.6,3688.2,2.4812]
[1717996495751,0.07038717,3688.5,3688.2,2.4812]
[1717996496071,0.07038717,3688.5,3688.3,35.24812]
[1717996496548,1.35553,3688.6,3688.3,35.24812]
[1717996502857,0.796,3688.5,3688.3,35.24812]
[1717996503366,1.35553,3688.6,3688.3,35.24812]
[1717996503879,1.35553,3688.6,3688.3,35.0]
[1717996504056,3.73173,3688.6,3688.3,35.0]
[1717996504458,0.796,3688.5,3688.3,35.0]
[1717996508465,1.35553,3688.6,3688.3,35.0]
[1717996510989,1.35553,3688.6,3688.1,2.3168]
[1717996511286,0.07025412,3688.5,3688.2,0.23168]
[1717996511458,0.07025412,3688.5,3688.3,35.0]
[1717996511857,1.35553,3688.6,3688.3,35.0]
[1717996515408,0.796,3688.7,3688.3,35.0]
[1717996516530,0.796,3688.7,3688.1,2.3168]
[1717996516701,0.796,3688.7,3688.2,0.367252]
[1717996517022,0.796,3688.7,3688.3,35.0]
[1717996521946,1.42280575,3689.0,3688.4,2.2777]
[1717996522155,1.35531,3689.2,3688.8,3.63312]
[1717996522156,1.4226565,3689.2,3688.8,3.63312]
[1717996522307,5.61985392,3689.8,3689.0,1.35537]
[1717996522513,0.06806824,3689.1,3689.0,1.35537]
[1717996522812,3.77279,3689.8,3689.0,1.35537]
[1717996523028,1.35509,3689.8,3689.1,35.0]
[1717996523313,2.15109,3689.8,3689.1,36.14983604]
[1717996523850,1.35509,3689.8,3689.2,2.4889]
[1717996524452,1.35509,3689.8,3689.3,35.0]
[1717996526524,2.15109,3689.8,3689.3,35.0]
[1717996526723,2.15109,3689.8,3689.3,37.12500694]
[1717996530627,2.15109,3689.8,3689.3,2.12500694]
[1717996530954,2.15109,3689.8,3689.2,2.4889]
[1717996530955,0.06851163,3689.7,3689.2,2.4889]
[1717996531164,0.06851163,3689.7,3689.2,37.4889]
[1717996531452,2.15109,3689.8,3689.2,37.4889]
[1717996534026,2.15109,3689.8,3689.2,2.4889]
[1717996534224,0.09732955,3689.7,3689.0,1.35537]
[1717996534552,2.3266,3689.5,3689.0,1.35537]
[1717996534756,2.3266,3689.5,3689.0,4.00567545]
[1717996537762,2.3266,3689.5,3689.0,1.35537]
[1717996538074,0.09723191,3689.4,3689.1,35.0]
[1717996538567,2.3266,3689.5,3689.1,35.0]
[1717996550976,0.796,3689.4,3689.1,35.0]
[1717996551478,0.796,3689.4,3688.8,3.0]
[1717996551683,0.796,3689.4,3688.7,1.35548]
[1717996551997,0.796,3689.2,3688.8,35.0]
[1717996561098,2.4536,3689.1,3688.8,35.0]
[1717996561266,0.796,3689.0,3688.8,35.0]
[1717996561889,2.1514,3689.0,3688.8,35.0]
[1717996564173,2.1514,3689.0,3688.4,7.28]
[1717996564370,0.796,3688.8,3688.4,7.28]
[1717996564796,0.796,3688.8,3688.5,35.0]
[1717996567784,2.1514,3689.0,3688.5,35.0]
[1717996568385,0.796,3688.8,3688.5,35.0]
[1717996569510,0.796,3688.6,3688.5,35.0]
[1717996569895,1.259168,3688.6,3688.5,35.0]
[1717996570418,1.259168,3688.6,3687.8,1.35581]
[1717996570573,0.796,3688.3,3687.5,7.28]
[1717996570779,3.1899,3688.3,3687.5,7.28]
[1717996571000,0.09625232,3688.2,3688.0,35.0]
[1717996571184,3.1899,3688.3,3688.0,35.0]
[1717996571592,2.3939,3687.8,3686.9,1.35615]
[1717996571801,0.796,3687.5,3686.9,1.35615]
[1717996572015,1.45195983,3687.7,3687.0,0.45901541]
[1717996572218,0.09570663,3687.4,3687.0,0.45901541]
[1717996572383,2.15188,3687.7,3687.0,0.45901541]
[1717996575121,2.15188,3687.7,3687.1,35.0]
[1717996575422,2.15188,3687.7,3687.1,37.50786601]
[1717996576395,1.35588,3687.7,3687.1,37.50786601]
[1717996581531,1.35574,3688.1,3687.2,3.76693]
[1717996581730,2.2933,3688.2,3687.4,1.35595]
[1717996581898,0.796,3688.4,3687.5,3.2069]
[1717996582104,0.0926901,3688.3,3687.6,35.0]
[1717996582493,3.64479,3688.5,3687.7,0.796]
[1717996582831,1.35559,3688.5,3687.7,4.80214545]
[1717996582982,0.796,3688.7,3687.7,2.15184]
[1717996583187,0.09279633,3688.4,3687.9,1.35578]
[1717996583440,0.09286145,3688.6,3687.9,2.15178]
[1717996583747,1.35544,3688.9,3688.0,2.65030545]
[1717996583886,2.4706,3689.1,3688.1,5.1517]
[1717996584085,0.88892266,3689.0,3688.2,35.0]
[1717996584704,0.09292266,3689.0,3688.2,35.0]
[1717996584905,0.796,3688.9,3688.3,2.65030545]
[1717996585323,0.796,3688.9,3688.1,2.1517]
[1717996585525,0.0930037,3688.8,3688.4,35.0]
[1717996585934,0.796,3688.9,3688.4,35.0]
[1717996586229,0.796,3689.0,3688.4,35.0]
[1717996586647,1.77969197,3689.3,3688.5,2.3512]
[1717996586797,0.796,3689.2,3688.6,2.65030545]
[1717996588825,0.796,3689.0,3688.6,2.65030545]
[1717996589858,0.796,3689.0,3688.4,1.35558]
[1717996590385,0.796,3689.0,3688.5,35.0]
[1717996592563,0.796,3688.8,3688.0,1.35572]
[1717996592979,0.796,3688.8,3688.0,36.35572]
[1717996593153,0.796,3688.8,3688.1,3.0]
[1717996593355,0.796,3688.8,3688.2,2.1392533]
[1717996593676,0.796,3688.6,3688.1,3.0]
[1717996593855,0.0932961,3688.5,3688.2,35.0]
[1717996594208,0.796,3688.6,3688.2,35.0]
[1717996596993,0.796,3688.6,3688.0,1.35572]
[1717996597577,0.796,3688.6,3688.1,35.0]
[1717996599968,2.364,3688.8,3688.1,37.65030545]
[1717996600163,3.16,3688.8,3688.1,37.65030545]
[1717996602118,0.796,3688.6,3688.1,37.65030545]
[1717996606982,2.364,3688.8,3688.1,37.65030545]
[1717996606983,3.16,3688.8,3688.1,37.65030545]
[1717996609603,2.15148,3688.8,3688.1,35.0]
[1717996609809,0.796,3688.6,3688.1,35.0]
[1717996618393,2.3576,3688.7,3688.1,35.0]
[1717996618594,3.1536,3688.7,3688.1,35.0]
[1717996623837,0.796,3688.5,3688.1,35.0]
[1717996624427,3.1536,3688.7,3688.1,35.0]
[1717996627943,1.35552,3688.6,3688.1,35.0]
[1717996628164,0.796,3688.5,3688.1,35.0]
[1717996628568,2.15152,3688.6,3688.1,35.0]
[1717996635812,0.796,3688.6,3688.1,35.0]
[1717996650703,1.35556,3688.5,3688.1,35.0]
[1717996651015,3.36955192,3688.4,3688.1,35.0]
[1717996651581,3.2788,3688.4,3688.1,35.0]
[1717996652284,0.09071936,3688.3,3688.1,35.0]
[1717996653777,0.796,3688.2,3687.8,7.28]
[1717996654124,0.796,3688.0,3687.8,7.28]
[1717996654282,3.2442,3688.0,3687.8,42.28]
[1717996654484,1.35578,3687.9,3687.8,7.28]
[1717996654879,1.44624422,3687.9,3687.8,7.28]
[1717996655690,1.35578,3687.9,3687.8,7.28]
[1717996656189,1.35578,3687.9,3687.4,35.0]
[1717996656522,0.796,3687.8,3687.4,35.0]
[1717996657789,2.3906,3687.7,3687.4,35.0]
[1717996658189,0.796,3687.6,3687.4,35.0]
[1717996660137,3.80023,3687.5,3686.9,7.28]
[1717996660341,0.796,3687.3,3686.9,7.28]
[1717996660542,0.0902362,3687.2,3686.9,7.28]
[1717996660730,0.0902362,3687.2,3687.0,35.0]
[1717996660935,0.796,3687.3,3687.0,35.0]
[1717996664011,4.59623,3687.5,3687.0,37.65030545]
[1717996664245,2.2627,3687.8,3687.0,40.13850545]
[1717996664482,3.0587,3687.8,3687.1,2.65030545]
[1717996664872,2.2627,3687.8,3687.1,2.65030545]
[1717996665076,1.35581,3687.9,3687.1,4.00637545]
[1717996665384,2.15181,3687.9,3687.1,4.00637545]
[1717996665591,2.15181,3687.9,3687.2,2.65030545]
[1717996667555,2.15181,3687.9,3687.1,1.35607]
[1717996667755,0.09006002,3687.8,3687.1,1.35607]
[1717996667956,0.09006002,3687.8,3687.3,35.0]
[1717996668157,0.796,3687.7,3687.3,35.0]
[1717996668365,0.796,3687.7,3687.3,37.65030545]
[1717996670300,2.4593,3687.6,3687.3,37.65030545]
[1717996671499,2.4593,3687.6,3687.3,2.65030545]
[1717996671674,2.4593,3687.6,3687.1,1.35607]
[1717996672004,0.0899623,3687.5,3687.2,35.0]
[1717996672508,2.4593,3687.6,3687.2,35.0]
[1717996679217,0.796,3687.7,3687.2,35.0]
[1717996682134,2.4498,3687.8,3687.2,35.0]
[1717996682336,0.796,3687.7,3687.3,2.65030545]
[1717996682713,0.796,3687.7,3687.1,3.84397]
[1717996682910,0.08995965,3687.6,3687.2,35.0]
[1717996683327,0.796,3687.7,3687.2,35.0]
[1717996685199,2.15188,3687.7,3687.2,35.0]
[1717996685623,0.796,3687.5,3687.2,35.0]
[1717996688654,0.796,3687.5,3686.8,3.75358]
[1717996688819,0.796,3687.5,3686.9,0.454958]
[1717996689015,0.08981116,3687.4,3687.0,35.0]
[1717996689216,0.796,3687.5,3687.0,35.0]
[1717996691424,2.15188,3687.7,3687.0,35.0]
[1717996691625,2.15188,3687.7,3687.1,0.87729518]
[1717996692162,2.15188,3687.7,3686.9,0.454958]
[1717996692311,0.08987631,3687.6,3687.2,35.0]
[1717996692721,2.15188,3687.7,3687.2,35.0]
[1717996694313,0.796,3687.5,3686.9,0.454958]
[1717996694738,0.08981116,3687.4,3686.9,0.454958]
[1717996694936,0.08981116,3687.4,3687.0,35.4208538]
[1717996695316,0.796,3687.5,3687.0,35.4208538]
[1717996698260,0.796,3687.5,3687.0,0.4208538]
[1717996698564,0.796,3687.5,3687.1,35.0]
[1717996698747,0.08980796,3687.4,3687.1,35.0]
[1717996698932,0.796,3687.5,3687.1,35.0]
[1717996699552,0.796,3687.3,3687.1,35.0]
[1717996702080,2.15202,3687.3,3686.5,8.13120405]
[1717996702380,0.796,3687.1,3686.6,3.0]
[1717996702566,0.796,3687.1,3686.7,35.0]
[1717996703449,2.15202,3687.3,3686.7,35.0]
[1717996703650,2.15202,3687.3,3686.7,37.65030545]
[1717996705658,2.15202,3687.3,3686.7,2.65030545]
[1717996705892,2.15202,3687.3,3686.5,4.50453237]
[1717996706103,0.08885603,3687.2,3686.5,4.50453237]
[1717996706309,0.08885603,3687.2,3686.6,35.0]
[1717996706809,2.15202,3687.3,3686.6,35.0]
[1717996707099,0.08885603,3687.2,3686.8,0.796]
[1717996707594,1.35589,3687.6,3686.7,2.4658]
[1717996707886,1.35589,3687.6,3686.9,35.0]
[1717996708053,0.08895697,3687.5,3686.9,35.0]
[1717996708253,1.35589,3687.6,3686.9,35.0]
[1717996708453,1.35589,3687.6,3687.0,2.65030545]
[1717996708454,0.08892439,3687.4,3687.0,2.65030545]
[1717996708653,0.08767697,3687.5,3687.0,2.65030545]
[1717996708895,0.796,3687.5,3687.0,2.65030545]
[1717996709299,0.08764439,3687.4,3687.0,2.65030545]
[1717996709694,0.796,3687.5,3687.0,2.65030545]
[1717996710022,0.08764439,3687.4,3687.0,2.65030545]
[1717996710243,0.796,3687.5,3687.0,2.65030545]
[1717996710386,0.08764439,3687.4,3687.0,2.65030545]
[1717996710586,0.796,3687.5,3687.0,2.65030545]
[1717996710885,0.08764439,3687.4,3687.0,2.65030545]
[1717996711328,0.796,3687.5,3686.8,1.35615]
[1717996711623,0.08770529,3687.4,3687.1,35.0]
[1717996711827,0.796,3687.5,3687.1,35.0]
[1717996712012,0.08770529,3687.4,3687.1,35.0]
[1717996712720,0.08770529,3687.4,3686.5,5.35573642]
[1717996712721,3.1326,3687.3,3686.5,6.71202642]
[1717996713018,3.1326,3687.3,3686.5,4.35629]
[1717996713019,0.0876369,3687.2,3686.5,4.35629]
[1717996713220,0.0876369,3687.2,3686.6,35.0]
[1717996713722,3.1326,3687.3,3686.6,35.0]
[1717996717317,1.35604,3687.2,3686.6,35.0]
[1717996718117,1.35604,3687.2,3686.6,37.65030545]
[1717996722844,3.2049,3687.3,3686.6,37.65030545]
[1717996723149,0.08755357,3687.2,3686.6,37.65030545]
[1717996723453,3.2049,3687.3,3686.6,37.65030545]
[1717996723648,0.08755357,3687.2,3686.6,37.65030545]
[1717996723833,3.2049,3687.3,3686.6,37.65030545]
[1717996725518,3.2049,3687.3,3686.6,35.0]
[1717996725920,2.49132062,3687.5,3686.7,1.35621]
[1717996726232,5.59462062,3687.5,3686.7,1.35621]
[1717996726561,0.08762274,3687.4,3686.8,35.0]
[1717996727950,0.796,3687.3,3686.8,35.0]
[1717996729242,4.45924,3687.5,3686.8,37.65030545]
[1717996729570,0.08762274,3687.4,3686.8,40.14320545]
[1717996730069,4.45924,3687.5,3686.9,0.35246937]
[1717996730801,4.45924,3687.5,3687.0,35.0]
[1717996730802,0.08767323,3687.4,3687.0,35.0]
[1717996731074,4.45924,3687.5,3687.0,35.0]
[1717996731445,0.08752459,3687.4,3687.0,35.0]
[1717996731637,4.45924,3687.5,3687.0,35.0]
[1717996731838,0.08752459,3687.4,3687.0,35.0]
[1717996732071,4.45924,3687.5,3687.0,35.0]
[1717996732571,0.08751258,3687.4,3687.0,35.0]
[1717996732871,2.15194,3687.5,3687.0,35.0]
[1717996733278,0.08757266,3687.4,3687.0,35.0]
[1717996733741,2.15194,3687.5,3687.0,35.0]
[1717996735376,0.08757266,3687.4,3687.0,35.0]
[1717996735583,0.08757266,3687.4,3687.1,2.65030545]
[1717996735769,0.796,3687.6,3687.1,2.65030545]
[1717996736076,0.08760524,3687.5,3686.9,0.35246937]
[1717996736379,0.08760524,3687.5,3687.0,35.0]
[1717996739161,0.796,3687.6,3687.0,35.0]
[1717996739892,1.93138062,3687.6,3687.0,35.0]
[1717996740396,2.2777,3687.4,3687.0,35.0]
[1717996740597,3.0737,3687.4,3687.0,35.0]
[1717996740797,0.08735424,3687.3,3687.0,35.0]
[1717996741098,3.0737,3687.4,3687.0,35.0]
[1717996741494,0.08735424,3687.3,3687.0,35.0]
[1717996742502,0.08735424,3687.3,3687.0,37.65030545]
[1717996742805,2.2777,3687.4,3687.0,37.65030545]
[1717996742978,3.0737,3687.4,3687.0,37.65030545]